[Event "Early-Titled-Tuesday-Blitz-July-09-2024"]
[Site "Chess.com"]
[Date "2024.07.09"]
[Round "3"]
[White "MrMatesM"]
[Black "artin10862"]
[Result "0-1"]
[WhiteElo "2717"]
[BlackElo "2948"]
[TimeControl "180+1"]
[EndTime "8:27:42 PDT"]
[Termination "artin10862 won by resignation"]

1. Nf3 {[%clk 0:03:00.9]} 1... d5 {[%clk 0:02:56.9]} 2. g3 {[%clk 0:03:01.8]}
2... Bg4 {[%clk 0:02:56.5]} 3. Bg2 {[%clk 0:03:02.2]} 3... Nd7 {[%clk
0:02:56.2]} 4. O-O {[%clk 0:03:02.5]} 4... e5 {[%clk 0:02:55.7]} 5. h3 {[%clk
0:03:02.9]} 5... Bxf3 {[%clk 0:02:53.3]} 6. Bxf3 {[%clk 0:03:03.8]} 6... Ngf6
{[%clk 0:02:53.5]} 7. d3 {[%clk 0:03:04.3]} 7... c6 {[%clk 0:02:53.4]} 8. e4
{[%clk 0:03:04.4]} 8... dxe4 {[%clk 0:02:48.1]} 9. dxe4 {[%clk 0:03:04.4]} 9...
Bc5 {[%clk 0:02:48.6]} 10. Nd2 {[%clk 0:03:01.5]} 10... O-O {[%clk 0:02:48.2]}
11. Qe2 {[%clk 0:03:01.5]} 11... a5 {[%clk 0:02:43.2]} 12. a4 {[%clk 0:03:01.3]}
12... Re8 {[%clk 0:02:38.8]} 13. c3 {[%clk 0:03:01.6]} 13... g6 {[%clk
0:02:37.8]} 14. Nc4 {[%clk 0:03:01.6]} 14... Qc7 {[%clk 0:02:35]} 15. h4 {[%clk
0:03:00.4]} 15... h5 {[%clk 0:02:34.6]} 16. Bg5 {[%clk 0:02:59.7]} 16... Kg7
{[%clk 0:02:32.5]} 17. Kg2 {[%clk 0:02:58.6]} 17... Nf8 {[%clk 0:02:31.3]} 18.
Rfd1 {[%clk 0:02:47.2]} 18... Ne6 {[%clk 0:02:29.4]} 19. Be3 {[%clk 0:02:43.6]}
19... Bxe3 {[%clk 0:02:15.6]} 20. Qxe3 {[%clk 0:02:44.5]} 20... Nd7 {[%clk
0:02:12.7]} 21. Be2 {[%clk 0:02:38.4]} 21... Ndc5 {[%clk 0:02:07.8]} 22. f3
{[%clk 0:02:33.3]} 22... Red8 {[%clk 0:01:59]} 23. Kf2 {[%clk 0:02:07.7]} 23...
b5 {[%clk 0:01:41.4]} 24. axb5 {[%clk 0:02:03.8]} 24... cxb5 {[%clk 0:01:42.3]}
25. Na3 {[%clk 0:02:04.3]} 25... b4 {[%clk 0:01:42.5]} 26. Nc4 {[%clk
0:01:37.1]} 26... bxc3 {[%clk 0:01:33.9]} 27. bxc3 {[%clk 0:01:37]} 27... a4
{[%clk 0:01:31.2]} 28. Na3 {[%clk 0:01:36.6]} 28... Rxd1 {[%clk 0:01:23.3]} 29.
Rxd1 {[%clk 0:01:35.7]} 29... Rb8 {[%clk 0:01:23.8]} 30. Bc4 {[%clk 0:01:33.2]}
30... Rb2+ {[%clk 0:01:15.1]} 31. Rd2 {[%clk 0:01:33.3]} 31... Qb6 {[%clk
0:01:02.8]} 32. Kf1 {[%clk 0:01:17.7]} 32... Nxe4 {[%clk 0:00:55.3]} 0-1

[Event "Early-Titled-Tuesday-Blitz-July-09-2024"]
[Site "Chess.com"]
[Date "2024.07.09"]
[Round "3"]
[White "maroro07"]
[Black "Boudicca64"]
[Result "1-0"]
[WhiteElo "2376"]
[BlackElo "1934"]
[TimeControl "180+1"]
[EndTime "8:27:44 PDT"]
[Termination "maroro07 won by checkmate"]

1. d4 {[%clk 0:03:00.9]} 1... Nf6 {[%clk 0:02:55.9]} 2. c4 {[%clk 0:02:59.9]}
2... g6 {[%clk 0:02:55.8]} 3. Nc3 {[%clk 0:02:58.8]} 3... Bg7 {[%clk 0:02:55.5]}
4. e4 {[%clk 0:02:58.2]} 4... d6 {[%clk 0:02:55.2]} 5. Nf3 {[%clk 0:02:58.3]}
5... O-O {[%clk 0:02:54.6]} 6. Be2 {[%clk 0:02:58.4]} 6... e5 {[%clk 0:02:54.2]}
7. d5 {[%clk 0:02:58.5]} 7... Nfd7 {[%clk 0:02:52.5]} 8. g4 {[%clk 0:02:51.9]}
8... f5 {[%clk 0:02:48.5]} 9. gxf5 {[%clk 0:02:51.9]} 9... gxf5 {[%clk
0:02:47.9]} 10. Ng5 {[%clk 0:02:48]} 10... Nf6 {[%clk 0:02:45.8]} 11. exf5
{[%clk 0:02:45.4]} 11... Bxf5 {[%clk 0:02:42.8]} 12. Be3 {[%clk 0:02:43.7]}
12... c6 {[%clk 0:02:35.9]} 13. Qd2 {[%clk 0:02:41.5]} 13... cxd5 {[%clk
0:02:34]} 14. cxd5 {[%clk 0:02:41.5]} 14... Qa5 {[%clk 0:02:32.8]} 15. Rg1
{[%clk 0:02:37]} 15... Nbd7 {[%clk 0:02:21.6]} 16. Ne6 {[%clk 0:02:32.8]} 16...
Rf7 {[%clk 0:02:09.7]} 17. Bh6 {[%clk 0:02:18.6]} 17... Bg6 {[%clk 0:02:04.5]}
18. Bxg7 {[%clk 0:02:13.7]} 18... Rxg7 {[%clk 0:02:00.8]} 19. Nxg7 {[%clk
0:02:12.9]} 19... Kxg7 {[%clk 0:02:00.1]} 20. h4 {[%clk 0:02:02]} 20... Kf7
{[%clk 0:01:22.9]} 21. h5 {[%clk 0:02:01.6]} 21... Bf5 {[%clk 0:01:15.7]} 22.
O-O-O {[%clk 0:01:35.7]} 22... Ne4 {[%clk 0:01:02.5]} 23. Nxe4 {[%clk
0:01:29.7]} 23... Qxa2 {[%clk 0:01:02.1]} 24. Nxd6+ {[%clk 0:01:29.3]} 24... Ke7
{[%clk 0:00:38.4]} 25. Nxf5+ {[%clk 0:01:29]} 25... Ke8 {[%clk 0:00:38.2]} 26.
Rg8+ {[%clk 0:01:28]} 26... Kf7 {[%clk 0:00:37.1]} 27. Nh6+ {[%clk 0:01:25.4]}
27... Ke7 {[%clk 0:00:34]} 28. d6+ {[%clk 0:01:25.8]} 28... Ke6 {[%clk 0:00:31]}
29. Bg4+ {[%clk 0:01:26.4]} 29... Kf6 {[%clk 0:00:26.9]} 30. Qg5# {[%clk
0:01:26.6]} 1-0

[Event "Early-Titled-Tuesday-Blitz-July-09-2024"]
[Site "Chess.com"]
[Date "2024.07.09"]
[Round "3"]
[White "PedroGil25"]
[Black "BaylavChess"]
[Result "0-1"]
[WhiteElo "2622"]
[BlackElo "2435"]
[TimeControl "180+1"]
[EndTime "8:27:45 PDT"]
[Termination "BaylavChess won by resignation"]

1. e4 {[%clk 0:03:00.9]} 1... c5 {[%clk 0:02:58.6]} 2. Nf3 {[%clk 0:03:00]} 2...
e6 {[%clk 0:02:52.8]} 3. c3 {[%clk 0:02:57.7]} 3... d5 {[%clk 0:02:50.4]} 4.
exd5 {[%clk 0:02:58.6]} 4... Qxd5 {[%clk 0:02:49.6]} 5. d4 {[%clk 0:02:57.7]}
5... Nf6 {[%clk 0:02:49.8]} 6. Be2 {[%clk 0:02:56.8]} 6... Be7 {[%clk
0:02:48.5]} 7. O-O {[%clk 0:02:56.3]} 7... O-O {[%clk 0:02:48.5]} 8. Be3 {[%clk
0:02:53.2]} 8... cxd4 {[%clk 0:02:48.4]} 9. Nxd4 {[%clk 0:02:47.3]} 9... e5
{[%clk 0:02:39.5]} 10. Nb5 {[%clk 0:02:45.8]} 10... Qxd1 {[%clk 0:02:35.8]} 11.
Rxd1 {[%clk 0:02:46.7]} 11... Nc6 {[%clk 0:02:36]} 12. N1a3 {[%clk 0:02:18.2]}
12... Bg4 {[%clk 0:02:16.6]} 13. Kf1 {[%clk 0:02:07]} 13... Bxe2+ {[%clk
0:02:11.3]} 14. Kxe2 {[%clk 0:02:07.9]} 14... a6 {[%clk 0:02:11.8]} 15. Nd6
{[%clk 0:02:06.7]} 15... b5 {[%clk 0:02:02.4]} 16. Nc2 {[%clk 0:02:06]} 16...
Rfd8 {[%clk 0:01:55.6]} 17. Nf5 {[%clk 0:02:03.7]} 17... Bf8 {[%clk 0:01:51.8]}
18. Bg5 {[%clk 0:02:02.8]} 18... Rxd1 {[%clk 0:01:44.9]} 19. Rxd1 {[%clk
0:02:03.7]} 19... Ne4 {[%clk 0:01:45.2]} 20. Be3 {[%clk 0:02:01.6]} 20... g6
{[%clk 0:01:44.5]} 21. Ng3 {[%clk 0:01:58.2]} 21... Nxg3+ {[%clk 0:01:43.9]} 22.
hxg3 {[%clk 0:01:59.1]} 22... Rd8 {[%clk 0:01:43.3]} 23. Rxd8 {[%clk 0:01:53.1]}
23... Nxd8 {[%clk 0:01:44.2]} 24. Kd3 {[%clk 0:01:52.1]} 24... f5 {[%clk
0:01:43.1]} 25. f3 {[%clk 0:01:51.2]} 25... Kf7 {[%clk 0:01:43.2]} 26. c4 {[%clk
0:01:51.1]} 26... Ke6 {[%clk 0:01:35.3]} 27. b3 {[%clk 0:01:49.8]} 27... Nb7
{[%clk 0:01:30.2]} 28. cxb5 {[%clk 0:01:47.4]} 28... axb5 {[%clk 0:01:30.3]} 29.
a4 {[%clk 0:01:47.6]} 29... bxa4 {[%clk 0:01:04.9]} 30. bxa4 {[%clk 0:01:48.5]}
30... Kd5 {[%clk 0:01:05.7]} 31. Bb6 {[%clk 0:01:29.4]} 31... Bc5 {[%clk
0:01:02.7]} 32. Ne3+ {[%clk 0:01:23]} 32... Kc6 {[%clk 0:00:59.4]} 33. Bd8
{[%clk 0:01:21.8]} 33... Nxd8 {[%clk 0:00:54.4]} 34. Nc4 {[%clk 0:01:19.6]}
34... Kd5 {[%clk 0:00:51.8]} 35. a5 {[%clk 0:01:17.9]} 35... Nc6 {[%clk
0:00:50.4]} 36. a6 {[%clk 0:01:17.9]} 36... Nb4+ {[%clk 0:00:50.5]} 37. Kc3
{[%clk 0:01:17.6]} 37... Nxa6 {[%clk 0:00:51.2]} 0-1

[Event "Early-Titled-Tuesday-Blitz-July-09-2024"]
[Site "Chess.com"]
[Date "2024.07.09"]
[Round "3"]
[White "alreadybroken23"]
[Black "ThanhNghia"]
[Result "1/2-1/2"]
[WhiteElo "2672"]
[BlackElo "2476"]
[TimeControl "180+1"]
[EndTime "8:27:48 PDT"]
[Termination "Game drawn by repetition"]

1. e4 {[%clk 0:03:00.9]} 1... e5 {[%clk 0:02:59.7]} 2. Nf3 {[%clk 0:03:01]} 2...
Nc6 {[%clk 0:02:59.3]} 3. Bc4 {[%clk 0:03:00.2]} 3... Be7 {[%clk 0:02:58.3]} 4.
O-O {[%clk 0:03:00]} 4... Nf6 {[%clk 0:02:57.8]} 5. d4 {[%clk 0:03:00.4]} 5...
Nxe4 {[%clk 0:02:53.3]} 6. dxe5 {[%clk 0:02:57.6]} 6... O-O {[%clk 0:02:52.9]}
7. Re1 {[%clk 0:02:57.6]} 7... Nc5 {[%clk 0:02:49.4]} 8. Bf4 {[%clk 0:02:57.2]}
8... d6 {[%clk 0:02:12.8]} 9. exd6 {[%clk 0:02:55.1]} 9... Bxd6 {[%clk
0:02:12.9]} 10. Bxd6 {[%clk 0:02:55]} 10... cxd6 {[%clk 0:02:13.2]} 11. Nc3
{[%clk 0:02:54.8]} 11... Be6 {[%clk 0:02:13.1]} 12. Bd5 {[%clk 0:02:48.9]} 12...
Rc8 {[%clk 0:02:09.9]} 13. Qd2 {[%clk 0:02:48.3]} 13... h6 {[%clk 0:01:40.9]}
14. Rad1 {[%clk 0:02:46.6]} 14... Bg4 {[%clk 0:01:32]} 15. h3 {[%clk 0:02:41.5]}
15... Bxf3 {[%clk 0:01:30.5]} 16. Bxf3 {[%clk 0:02:42.4]} 16... Ne5 {[%clk
0:01:25.3]} 17. Bd5 {[%clk 0:02:41.4]} 17... Qb6 {[%clk 0:01:24.3]} 18. Kh2
{[%clk 0:02:37.6]} 18... Qxb2 {[%clk 0:01:18.5]} 19. f4 {[%clk 0:02:35.7]} 19...
Nc6 {[%clk 0:01:14.1]} 20. Ne4 {[%clk 0:02:21.5]} 20... Nxe4 {[%clk 0:01:08.4]}
21. Rxe4 {[%clk 0:02:22.3]} 21... Rfe8 {[%clk 0:01:05.6]} 22. Rde1 {[%clk
0:02:21.1]} 22... Rxe4 {[%clk 0:01:05.1]} 23. Rxe4 {[%clk 0:02:22]} 23... Qf6
{[%clk 0:00:59.6]} 24. c4 {[%clk 0:02:17.2]} 24... g6 {[%clk 0:00:59.5]} 25. a4
{[%clk 0:02:11.1]} 25... Kg7 {[%clk 0:00:59.5]} 26. a5 {[%clk 0:02:11.2]} 26...
Rc7 {[%clk 0:00:59.4]} 27. a6 {[%clk 0:02:09.6]} 27... bxa6 {[%clk 0:00:59.1]}
28. Qe3 {[%clk 0:02:06.1]} 28... Ne7 {[%clk 0:00:58.5]} 29. Qd3 {[%clk
0:01:53.8]} 29... Rc5 {[%clk 0:00:51.5]} 30. Ba8 {[%clk 0:01:51.2]} 30... a5
{[%clk 0:00:50.2]} 31. Qb3 {[%clk 0:01:39.9]} 31... Nf5 {[%clk 0:00:46.9]} 32.
Bd5 {[%clk 0:01:38.2]} 32... Ne7 {[%clk 0:00:42.4]} 33. Ba8 {[%clk 0:01:37.6]}
33... Rc7 {[%clk 0:00:40.5]} 34. Qa3 {[%clk 0:01:32.6]} 34... Rc5 {[%clk
0:00:37.2]} 35. Qb3 {[%clk 0:01:29.9]} 1/2-1/2

[Event "Early-Titled-Tuesday-Blitz-July-09-2024"]
[Site "Chess.com"]
[Date "2024.07.09"]
[Round "3"]
[White "pinelone"]
[Black "eltenedor"]
[Result "1/2-1/2"]
[WhiteElo "2402"]
[BlackElo "2148"]
[TimeControl "180+1"]
[EndTime "8:27:48 PDT"]
[Termination "Game drawn by repetition"]

1. Nf3 {[%clk 0:03:00.9]} 1... b6 {[%clk 0:02:59.2]} 2. g3 {[%clk 0:02:58.1]}
2... Bb7 {[%clk 0:02:59]} 3. Bg2 {[%clk 0:02:58.7]} 3... e6 {[%clk 0:02:58.9]}
4. b3 {[%clk 0:02:56.6]} 4... f5 {[%clk 0:02:58.3]} 5. O-O {[%clk 0:02:52.5]}
5... Nf6 {[%clk 0:02:58.1]} 6. c4 {[%clk 0:02:50.8]} 6... Be7 {[%clk 0:02:45.9]}
7. Bb2 {[%clk 0:02:47.6]} 7... O-O {[%clk 0:02:45.5]} 8. Nc3 {[%clk 0:02:37.8]}
8... c5 {[%clk 0:02:43.9]} 9. d4 {[%clk 0:02:36.9]} 9... cxd4 {[%clk 0:02:36.5]}
10. Nxd4 {[%clk 0:02:32.9]} 10... Bxg2 {[%clk 0:02:35.7]} 11. Kxg2 {[%clk
0:02:33.4]} 11... a6 {[%clk 0:02:33.2]} 12. Qd3 {[%clk 0:02:29]} 12... Qc7
{[%clk 0:02:30.5]} 13. Rac1 {[%clk 0:02:24.7]} 13... Nc6 {[%clk 0:02:25.6]} 14.
Nf3 {[%clk 0:02:08]} 14... Qb7 {[%clk 0:02:17.8]} 15. Rfd1 {[%clk 0:01:55.3]}
15... Ne5 {[%clk 0:02:03.7]} 16. Qd2 {[%clk 0:01:52.2]} 16... Ne4 {[%clk
0:01:38]} 17. Nxe4 {[%clk 0:01:37.8]} 17... fxe4 {[%clk 0:01:30.1]} 18. Bxe5
{[%clk 0:01:37.3]} 18... exf3+ {[%clk 0:01:28.9]} 19. exf3 {[%clk 0:01:34.6]}
19... Qxf3+ {[%clk 0:01:28.1]} 20. Kg1 {[%clk 0:01:34.2]} 20... Bg5 {[%clk
0:00:57.9]} 21. Qxg5 {[%clk 0:01:18.7]} 21... Qxf2+ {[%clk 0:00:57.6]} 22. Kh1
{[%clk 0:01:19]} 22... Qf3+ {[%clk 0:00:34]} 23. Kg1 {[%clk 0:01:18.5]} 23...
Qf2+ {[%clk 0:00:20.2]} 24. Kh1 {[%clk 0:01:18.4]} 24... Qf3+ {[%clk 0:00:20.3]}
25. Kg1 {[%clk 0:01:18.2]} 25... Qf2+ {[%clk 0:00:20.5]} 1/2-1/2

[Event "Early-Titled-Tuesday-Blitz-July-09-2024"]
[Site "Chess.com"]
[Date "2024.07.09"]
[Round "3"]
[White "Potosino1970"]
[Black "alexrustemov"]
[Result "1-0"]
[WhiteElo "2708"]
[BlackElo "2873"]
[TimeControl "180+1"]
[EndTime "8:27:50 PDT"]
[Termination "Potosino1970 won on time"]

1. e4 {[%clk 0:03:00.9]} 1... e6 {[%clk 0:03:00.5]} 2. d3 {[%clk 0:03:00.2]}
2... c5 {[%clk 0:03:00.8]} 3. g3 {[%clk 0:02:57.4]} 3... Nc6 {[%clk 0:03:01.1]}
4. Bg2 {[%clk 0:02:57.6]} 4... g6 {[%clk 0:03:01.7]} 5. f4 {[%clk 0:02:55.3]}
5... Bg7 {[%clk 0:03:02]} 6. Nf3 {[%clk 0:02:55.3]} 6... Nge7 {[%clk 0:03:02.4]}
7. O-O {[%clk 0:02:55.3]} 7... O-O {[%clk 0:03:02.6]} 8. c3 {[%clk 0:02:55.2]}
8... b5 {[%clk 0:02:59]} 9. Be3 {[%clk 0:02:53.6]} 9... d6 {[%clk 0:02:55.8]}
10. d4 {[%clk 0:02:53.3]} 10... cxd4 {[%clk 0:02:52]} 11. cxd4 {[%clk
0:02:54.2]} 11... d5 {[%clk 0:02:51.8]} 12. e5 {[%clk 0:02:54.1]} 12... b4
{[%clk 0:02:47.5]} 13. Nbd2 {[%clk 0:02:49]} 13... a5 {[%clk 0:02:45.9]} 14. g4
{[%clk 0:02:45.5]} 14... Ba6 {[%clk 0:02:44.6]} 15. Re1 {[%clk 0:02:45]} 15...
Bd3 {[%clk 0:02:33.2]} 16. Bf2 {[%clk 0:02:40.4]} 16... a4 {[%clk 0:02:29.4]}
17. Re3 {[%clk 0:02:39.6]} 17... Bb5 {[%clk 0:02:25.7]} 18. Bh4 {[%clk
0:02:38.8]} 18... Qb6 {[%clk 0:02:24.3]} 19. Nf1 {[%clk 0:02:33.8]} 19... Rfc8
{[%clk 0:02:10.3]} 20. Re1 {[%clk 0:02:13]} 20... Bh6 {[%clk 0:02:02.4]} 21. Qd2
{[%clk 0:02:11.5]} 21... b3 {[%clk 0:01:56.8]} 22. a3 {[%clk 0:02:07.2]} 22...
Na5 {[%clk 0:01:55.7]} 23. Bxe7 {[%clk 0:02:06.3]} 23... Nc4 {[%clk 0:01:52.2]}
24. Qf2 {[%clk 0:02:04.1]} 24... Bxf4 {[%clk 0:01:40.4]} 25. Ng5 {[%clk
0:02:03.3]} 25... Ra7 {[%clk 0:00:55.3]} 26. Bf6 {[%clk 0:01:59.4]} 26... Bxg5
{[%clk 0:00:49.4]} 27. Bxg5 {[%clk 0:02:00.3]} 27... Nxb2 {[%clk 0:00:41.3]} 28.
Qf6 {[%clk 0:01:54.4]} 28... Qxd4+ {[%clk 0:00:07.9]} 29. Be3 {[%clk 0:01:53.6]}
29... Qxg4 {[%clk 0:00:02.2]} 30. Bh6 {[%clk 0:01:53.1]} 30... Qd4+ {[%clk
0:00:02.3]} 31. Kh1 {[%clk 0:01:52.9]} 1-0

[Event "Early-Titled-Tuesday-Blitz-July-09-2024"]
[Site "Chess.com"]
[Date "2024.07.09"]
[Round "3"]
[White "Alexander_Donchenko"]
[Black "Mikasinski"]
[Result "1-0"]
[WhiteElo "2915"]
[BlackElo "2706"]
[TimeControl "180+1"]
[EndTime "8:27:55 PDT"]
[Termination "Alexander_Donchenko won by checkmate"]

1. Nf3 {[%clk 0:03:00.9]} 1... Nf6 {[%clk 0:02:56.8]} 2. g3 {[%clk 0:03:01.2]}
2... e6 {[%clk 0:02:52]} 3. Bg2 {[%clk 0:03:01.6]} 3... d5 {[%clk 0:02:52.2]} 4.
O-O {[%clk 0:03:02.5]} 4... Be7 {[%clk 0:02:52.4]} 5. c4 {[%clk 0:03:03]} 5...
O-O {[%clk 0:02:52.6]} 6. d4 {[%clk 0:03:03.6]} 6... dxc4 {[%clk 0:02:53]} 7.
Qc2 {[%clk 0:03:04.2]} 7... a6 {[%clk 0:02:52.9]} 8. a4 {[%clk 0:03:04.9]} 8...
Bd7 {[%clk 0:02:52.8]} 9. Qxc4 {[%clk 0:03:05.3]} 9... Bc6 {[%clk 0:02:53.4]}
10. Bf4 {[%clk 0:03:06]} 10... Nbd7 {[%clk 0:02:53.6]} 11. Nc3 {[%clk
0:03:05.8]} 11... a5 {[%clk 0:02:51.3]} 12. Rfd1 {[%clk 0:03:00.7]} 12... Nb6
{[%clk 0:02:47.1]} 13. Qb3 {[%clk 0:03:00.8]} 13... Bb4 {[%clk 0:02:46.9]} 14.
Rac1 {[%clk 0:02:51.9]} 14... Qe7 {[%clk 0:02:43.3]} 15. Ne5 {[%clk 0:02:49.3]}
15... Bxg2 {[%clk 0:02:43.1]} 16. Kxg2 {[%clk 0:02:50.2]} 16... Nbd5 {[%clk
0:02:41.1]} 17. e4 {[%clk 0:02:45.7]} 17... Nxf4+ {[%clk 0:02:22.2]} 18. gxf4
{[%clk 0:02:45.9]} 18... Bxc3 {[%clk 0:02:04.7]} 19. bxc3 {[%clk 0:02:46.8]}
19... Nxe4 {[%clk 0:02:01.9]} 20. Qxb7 {[%clk 0:02:46.7]} 20... Nd6 {[%clk
0:02:00]} 21. Qf3 {[%clk 0:02:45.2]} 21... Nf5 {[%clk 0:01:56]} 22. Kh1 {[%clk
0:02:44.2]} 22... Qh4 {[%clk 0:01:53.3]} 23. Rb1 {[%clk 0:02:41.4]} 23... Rac8
{[%clk 0:01:48.1]} 24. Rb5 {[%clk 0:02:39.3]} 24... Rfd8 {[%clk 0:01:37.3]} 25.
Rxa5 {[%clk 0:02:32.8]} 25... c5 {[%clk 0:01:37.2]} 26. Rxc5 {[%clk 0:02:30.5]}
26... Rxc5 {[%clk 0:01:36.5]} 27. dxc5 {[%clk 0:02:31.4]} 27... Rxd1+ {[%clk
0:01:32.5]} 28. Qxd1 {[%clk 0:02:32.3]} 28... h5 {[%clk 0:01:26.8]} 29. Qf3
{[%clk 0:02:27.5]} 29... Qe7 {[%clk 0:01:22.1]} 30. c6 {[%clk 0:02:18.8]} 30...
Qc5 {[%clk 0:01:19.5]} 31. Qxh5 {[%clk 0:02:10.8]} 31... Qxc3 {[%clk 0:01:14.2]}
32. Qxf7+ {[%clk 0:02:09.8]} 32... Kh7 {[%clk 0:01:14.8]} 33. Qg6+ {[%clk
0:02:08.9]} 33... Kh8 {[%clk 0:01:13.5]} 34. Qxe6 {[%clk 0:01:33.5]} 34... Qe1+
{[%clk 0:01:05.2]} 35. Kg2 {[%clk 0:01:33.9]} 35... Qe4+ {[%clk 0:01:04.4]} 36.
Kh3 {[%clk 0:01:25.2]} 36... Qb1 {[%clk 0:00:46.2]} 37. Nf7+ {[%clk 0:01:24.7]}
37... Kg8 {[%clk 0:00:40.6]} 38. Ng5+ {[%clk 0:01:24.3]} 38... Kh8 {[%clk
0:00:40.6]} 39. Qe8# {[%clk 0:01:24.2]} 1-0

[Event "Early-Titled-Tuesday-Blitz-July-09-2024"]
[Site "Chess.com"]
[Date "2024.07.09"]
[Round "3"]
[White "NowInChess"]
[Black "Kombinator01"]
[Result "0-1"]
[WhiteElo "2193"]
[BlackElo "2420"]
[TimeControl "180+1"]
[EndTime "8:28:07 PDT"]
[Termination "Kombinator01 won by resignation"]

1. e4 {[%clk 0:03:00.9]} 1... c5 {[%clk 0:02:58.9]} 2. d3 {[%clk 0:03:00.9]}
2... Nc6 {[%clk 0:02:57.3]} 3. g3 {[%clk 0:03:00.8]} 3... g6 {[%clk 0:02:57.2]}
4. Bg2 {[%clk 0:03:01]} 4... Bg7 {[%clk 0:02:57.2]} 5. f4 {[%clk 0:03:01.4]}
5... e6 {[%clk 0:02:57.3]} 6. Nf3 {[%clk 0:03:01]} 6... Nge7 {[%clk 0:02:57.8]}
7. O-O {[%clk 0:03:00.5]} 7... O-O {[%clk 0:02:57.7]} 8. c3 {[%clk 0:02:59.8]}
8... d5 {[%clk 0:02:57.1]} 9. Be3 {[%clk 0:02:59.2]} 9... d4 {[%clk 0:02:50.2]}
10. Bf2 {[%clk 0:02:55.8]} 10... e5 {[%clk 0:02:46.3]} 11. fxe5 {[%clk
0:02:40.9]} 11... Nxe5 {[%clk 0:02:43.9]} 12. cxd4 {[%clk 0:02:40.6]} 12...
Nxf3+ {[%clk 0:02:43.6]} 13. Qxf3 {[%clk 0:02:36.4]} 13... Bxd4 {[%clk
0:02:40.3]} 14. Nc3 {[%clk 0:02:28.8]} 14... Be6 {[%clk 0:02:33.1]} 15. Nd5
{[%clk 0:02:21.4]} 15... Bxd5 {[%clk 0:02:24.9]} 16. exd5 {[%clk 0:02:22.3]}
16... Nf5 {[%clk 0:02:20.5]} 17. Rac1 {[%clk 0:02:07.7]} 17... Qd6 {[%clk
0:02:15.3]} 18. Kh1 {[%clk 0:01:58]} 18... Bxf2 {[%clk 0:02:07.4]} 19. Rxf2
{[%clk 0:01:53.5]} 19... Nd4 {[%clk 0:01:57.8]} 20. Qf4 {[%clk 0:01:52.8]} 20...
Qxf4 {[%clk 0:01:55.7]} 21. gxf4 {[%clk 0:01:50.1]} 21... b6 {[%clk 0:01:52.1]}
22. Re1 {[%clk 0:01:37.5]} 22... Rfe8 {[%clk 0:01:50.5]} 23. Re4 {[%clk
0:01:29.8]} 23... Rad8 {[%clk 0:01:36.8]} 24. Rf1 {[%clk 0:01:28.1]} 24... a5
{[%clk 0:01:35.1]} 25. Rfe1 {[%clk 0:01:22.3]} 25... Kf8 {[%clk 0:01:34.7]} 26.
Kg1 {[%clk 0:01:13.8]} 26... Nc2 {[%clk 0:01:34.4]} 27. R1e2 {[%clk 0:01:04.3]}
27... Nb4 {[%clk 0:01:33.9]} 28. d4 {[%clk 0:00:29]} 28... cxd4 {[%clk
0:01:21.3]} 29. a3 {[%clk 0:00:28.9]} 29... Nd3 {[%clk 0:01:21]} 30. Rd2 {[%clk
0:00:22.2]} 30... Rxe4 {[%clk 0:01:18]} 31. Bxe4 {[%clk 0:00:20.8]} 31... Nxf4
{[%clk 0:01:18.5]} 32. Rxd4 {[%clk 0:00:20.8]} 32... Ne2+ {[%clk 0:01:15.7]} 0-1

[Event "Early-Titled-Tuesday-Blitz-July-09-2024"]
[Site "Chess.com"]
[Date "2024.07.09"]
[Round "3"]
[White "atbenina64"]
[Black "orackbbama"]
[Result "1-0"]
[WhiteElo "2793"]
[BlackElo "2302"]
[TimeControl "180+1"]
[EndTime "8:28:10 PDT"]
[Termination "atbenina64 won by resignation"]

1. c4 {[%clk 0:03:00]} 1... Nf6 {[%clk 0:02:59.6]} 2. Nc3 {[%clk 0:02:59.9]}
2... g6 {[%clk 0:03:00.2]} 3. e4 {[%clk 0:03:00]} 3... d6 {[%clk 0:03:00.8]} 4.
d4 {[%clk 0:03:00.4]} 4... Bg7 {[%clk 0:03:01.1]} 5. Be2 {[%clk 0:03:00.9]} 5...
O-O {[%clk 0:03:01.3]} 6. Be3 {[%clk 0:03:01.3]} 6... e5 {[%clk 0:02:53.6]} 7.
d5 {[%clk 0:03:01.1]} 7... c6 {[%clk 0:02:46.6]} 8. g4 {[%clk 0:02:54.8]} 8...
cxd5 {[%clk 0:02:45.7]} 9. cxd5 {[%clk 0:02:54.7]} 9... Na6 {[%clk 0:02:34.1]}
10. f3 {[%clk 0:02:45]} 10... Bd7 {[%clk 0:02:26]} 11. h4 {[%clk 0:02:42.8]}
11... h5 {[%clk 0:02:19]} 12. g5 {[%clk 0:02:41.6]} 12... Ne8 {[%clk 0:02:18.9]}
13. Nh3 {[%clk 0:02:38.6]} 13... Qa5 {[%clk 0:02:02.2]} 14. Qd2 {[%clk
0:02:32.5]} 14... Nc5 {[%clk 0:01:58.3]} 15. Rb1 {[%clk 0:02:22.1]} 15... Qd8
{[%clk 0:01:28.3]} 16. b4 {[%clk 0:02:14]} 16... Na4 {[%clk 0:01:12.1]} 17. Nxa4
{[%clk 0:02:13]} 17... Bxa4 {[%clk 0:01:11.8]} 18. b5 {[%clk 0:02:13.9]} 18...
a6 {[%clk 0:01:11.7]} 19. bxa6 {[%clk 0:02:12.9]} 19... bxa6 {[%clk 0:01:11.8]}
20. Nf2 {[%clk 0:01:53.6]} 20... f5 {[%clk 0:01:07]} 21. gxf6 {[%clk 0:01:53.9]}
21... Bxf6 {[%clk 0:01:06.5]} 22. Rb7 {[%clk 0:01:35.8]} 22... Rf7 {[%clk
0:00:52.1]} 23. Rxf7 {[%clk 0:01:32.2]} 23... Kxf7 {[%clk 0:00:52.5]} 24. Nh3
{[%clk 0:01:27.7]} 24... Bxh4+ {[%clk 0:00:50.6]} 25. Kf1 {[%clk 0:01:27.6]}
25... Kg8 {[%clk 0:00:36.5]} 26. Rg1 {[%clk 0:01:19.3]} 26... Kh7 {[%clk
0:00:33.3]} 27. Bg5 {[%clk 0:01:13.7]} 27... Bxg5 {[%clk 0:00:33.5]} 28. Nxg5+
{[%clk 0:01:13.4]} 28... Kg8 {[%clk 0:00:32.4]} 29. Ne6 {[%clk 0:01:11.8]} 29...
Qf6 {[%clk 0:00:26.8]} 30. Qh6 {[%clk 0:01:10.6]} 1-0